bitfinex-derivatives/quotes_BNBF0:USTF0_20250316
["timestamp","ask_amount","ask_price","bid_price","bid_amount"]
[1742125086164,0.33573946,595.7,594.65,3.78606721]
[1742125086372,0.33573946,595.7,594.66,3.78606721]
[1742125086570,0.33573946,595.7,594.65,3.20256368]
[1742125086571,2.48617716,596.96,594.67,3.78606721]
[1742125086769,2.48617716,596.96,594.68,3.78606721]
[1742125086970,0.29232152,596.64,594.69,3.78606721]
[1742125087171,2.48617716,596.96,594.7,3.78606721]
[1742125087370,0.29224051,596.64,594.71,6.98863089]
[1742125087572,2.48617716,596.96,594.72,3.78606721]
[1742125087873,2.48617716,596.96,594.73,6.98863089]
[1742125088171,2.48617716,596.96,594.74,6.98863089]
[1742125088369,2.48617716,596.96,594.75,3.16371051]
[1742125088569,2.48617716,596.96,594.76,6.36627419]
[1742125088769,2.48617716,596.77,594.77,1.45631411]
[1742125088971,2.48617716,596.77,594.78,4.65887779]
[1742125089174,2.48617716,596.77,594.67,0.33632098]
[1742125089175,0.33514872,596.75,594.79,2.68806937]
[1742125089376,0.33514872,596.75,594.8,1.45631411]
[1742125089570,0.33514872,596.75,594.81,1.45631411]
[1742125089765,0.33514872,596.75,594.81,1.23175526]
[1742125090072,0.33514872,596.75,594.82,2.29768912]
[1742125090267,0.33514872,596.75,594.83,2.29768912]
[1742125090672,0.33514872,596.75,594.83,1.23175526]
[1742125090868,0.33514872,596.75,594.67,0.33632098]
[1742125091270,0.33514872,596.75,594.68,1.00994059]
[1742125091467,0.33514872,596.75,594.69,1.34625026]
[1742125091674,0.33514872,596.75,594.7,7.31253701]
[1742125091867,0.29227365,596.74,594.71,6.976233]
[1742125092067,0.29227365,596.74,594.72,6.976233]
[1742125092270,0.29227365,596.74,594.73,6.976233]
[1742125092470,0.29227365,596.74,594.74,3.77992707]
[1742125092673,0.29227365,596.74,594.75,3.15863896]
[1742125092969,0.33516557,596.72,594.76,1.79015168]
[1742125093171,0.33516557,596.72,594.77,1.45388159]
[1742125093374,0.33516557,596.72,594.78,1.79014037]
[1742125093672,0.33516557,596.72,594.79,1.61766272]
[1742125093873,0.33516557,596.72,594.8,0.38840823]
[1742125094073,0.33516557,596.72,594.81,0.38840823]
[1742125094275,0.33516557,596.72,594.78,0.33625878]
[1742125094772,0.29228837,596.71,594.78,0.33625878]
[1742125095074,0.33518242,596.69,594.78,0.33625878]
[1742125096474,2.48617716,596.66,594.78,0.33625878]
[1742125096671,0.33521051,596.64,594.78,0.33625878]
[1742125098277,2.48617716,596.59,594.78,0.33625878]
[1742125099574,0.33521051,596.64,594.78,0.33625878]
[1742125099575,2.48617716,596.52,594.78,0.33625878]
[1742125100173,0.33528918,596.5,594.78,0.33625878]
[1742125101074,0.33528918,596.5,594.79,1.45107297]
[1742125101280,0.33528918,596.5,594.8,0.38769227]
[1742125101478,0.33528918,596.5,594.78,0.33625878]
[1742125101680,0.33528918,596.5,594.8,3.18881171]
[1742125101876,0.29235099,596.49,594.8,3.18881171]
[1742125102080,0.33530605,596.47,594.78,0.33625878]
[1742125107799,2.48617716,596.2,594.78,0.33625878]
[1742125107997,0.33546915,596.18,594.78,0.33625878]
[1742125109100,2.82164631,596.18,594.78,0.33625878]
[1742125109603,2.82164631,596.18,594.52,1.23]
[1742125110198,2.82164631,596.18,594.53,1.22724649]
[1742125111703,2.48617716,596.1,594.53,1.22724649]
[1742125111896,0.33552543,596.08,594.53,1.22724649]
[1742125114705,2.48617716,595.96,594.53,1.22724649]
[1742125114904,2.48617716,595.96,594.52,1.23]
[1742125115104,0.33560425,595.94,594.52,1.23]
[1742125116703,0.33560425,595.94,594.53,0.33640018]
[1742125119198,0.33560425,595.94,594.54,1.22750176]
[1742125119998,0.33560425,595.94,594.53,0.33640018]
[1742125121206,0.33560425,595.94,594.54,1.06469694]
[1742125121415,0.33560425,595.94,594.53,0.33640018]
[1742125121601,0.33560425,595.94,594.55,1.22886699]
[1742125121807,0.33560425,595.94,594.56,1.45336274]
[1742125122008,0.33560425,595.94,594.57,3.15731967]
[1742125122208,0.33560425,595.94,594.58,1.45336274]
[1742125122405,0.33560425,595.94,594.59,1.06507587]
[1742125122602,0.33560425,595.94,594.6,1.06507587]
[1742125122806,0.33560425,595.94,594.61,1.06507587]
[1742125123407,0.33560425,595.94,594.62,1.22886699]
[1742125123606,0.33560425,595.94,594.63,1.06642393]
[1742125123808,0.33560425,595.94,594.62,1.22886699]
[1742125124307,0.33560425,595.94,594.54,3.19748833]
[1742125124516,0.33560425,595.94,594.55,1.79265823]
[1742125124711,0.33560425,595.94,594.56,4.9901409]
[1742125124912,0.33560425,595.94,594.57,1.79264692]
[1742125125107,0.33560425,595.94,594.58,3.02150825]
[1742125125310,0.33560425,595.94,594.59,1.79272306]
[1742125125510,0.33560425,595.94,594.6,1.06717677]
[1742125125812,0.33560425,595.94,594.61,0.38915048]
[1742125126014,0.33560425,595.94,594.62,1.06717677]
[1742125126210,0.33560425,595.94,594.63,1.06717677]
[1742125126615,0.33560425,595.94,594.64,0.38919324]
[1742125126817,0.33560425,595.94,594.65,2.29604376]
[1742125127112,0.33560425,595.94,594.66,1.06717677]
[1742125127416,0.33560425,595.94,594.65,1.22886699]
[1742125127615,0.33560425,595.94,594.59,0.33636623]
[1742125127819,0.33560425,595.94,594.6,1.4570766]
[1742125128014,0.33560425,595.94,594.61,1.45708215]
[1742125128214,0.33560425,595.94,594.62,1.06778627]
[1742125128414,0.33560425,595.94,594.61,1.23195597]
[1742125128611,0.33560425,595.94,594.62,1.0679288]
[1742125128812,0.33560425,595.94,594.62,1.23195597]
[1742125129117,0.33560425,595.94,594.63,1.06791401]
[1742125129314,0.33560425,595.94,594.64,1.06791401]
[1742125129510,0.33560425,595.94,594.62,1.23195597]
[1742125129710,0.33560425,595.94,594.6,0.33636057]
[1742125129915,0.33560425,595.94,594.61,1.06795975]
[1742125130107,0.33560425,595.94,594.6,0.33636057]
[1742125130509,0.33560425,595.94,594.61,1.0680163]
[1742125130711,0.33560425,595.94,594.6,0.33636057]
[1742125130915,0.33560425,595.94,594.61,1.0680149]
[1742125131110,0.33560425,595.94,594.62,1.0680149]
[1742125131313,0.33560425,595.94,594.63,1.0680149]
[1742125131514,0.33560425,595.94,594.64,1.45744935]
[1742125131714,0.33560425,595.94,594.65,1.45744935]
[1742125132009,0.33560425,595.94,594.66,1.45744935]
[1742125132208,0.33560425,595.94,594.67,2.68976168]
[1742125132410,0.33560425,595.94,594.68,1.0680149]
[1742125132814,0.33560425,595.94,594.69,1.23231233]
[1742125133016,0.33560425,595.94,594.7,1.0680149]
[1742125133213,0.33560425,595.94,594.69,1.23231233]
[1742125133419,0.33560425,595.94,594.7,1.23231233]
[1742125134018,0.33560425,595.94,594.62,3.20406052]
[1742125134213,0.33560425,595.94,594.63,1.45754695]
[1742125134420,0.33560425,595.94,594.64,1.45764015]
[1742125134713,0.33560425,595.94,594.65,1.06812224]
[1742125135120,0.33560425,595.94,594.66,1.23231233]
[1742125135419,0.33560425,595.94,594.67,1.06812224]
[1742125136017,0.33560425,595.94,594.68,1.23231233]
[1742125136214,0.33560425,595.94,594.69,1.06812224]
[1742125136519,0.33560425,595.94,594.68,1.23231233]
[1742125136717,0.33560425,595.94,594.7,1.23231233]
[1742125137520,0.33560425,595.94,594.62,3.20466261]
[1742125137719,0.33560425,595.94,594.63,1.45822216]
[1742125137920,0.33560425,595.94,594.64,1.45822216]
[1742125138121,0.33560425,595.94,594.65,1.45822216]
[1742125138416,0.33560425,595.94,594.66,1.45822216]
[1742125138621,0.33560425,595.94,594.67,1.06858898]
[1742125138920,0.33560425,595.94,594.68,1.06858898]
[1742125139120,0.33560425,595.94,594.69,1.06858898]
[1742125139420,0.33560425,595.94,594.69,1.23231233]
[1742125140315,0.33560425,595.94,594.61,1.106]
[1742125140316,0.33560425,595.94,594.62,1.23231233]
[1742125140520,0.33560425,595.94,594.63,1.06885438]
[1742125140720,0.33560425,595.94,594.64,1.06885438]
[1742125140922,0.33560425,595.94,594.62,1.23231233]
[1742125141122,0.33560425,595.94,594.63,1.06883309]
[1742125141316,0.33560425,595.94,594.64,1.06883309]
[1742125141520,0.33560425,595.94,594.61,1.106]
[1742125141820,0.33560425,595.94,594.62,1.06881694]
[1742125142123,0.33560425,595.94,594.63,1.06881694]
[1742125142322,0.33560425,595.94,594.64,1.068776]
[1742125142515,0.33560425,595.94,594.65,1.068776]
[1742125142715,0.33560425,595.94,594.61,1.106]
[1742125142916,0.33560425,595.94,594.66,1.23311981]
[1742125143317,0.33560425,595.94,594.67,1.06876328]
[1742125143622,0.33560425,595.94,594.67,1.23311981]
[1742125144121,0.33560425,595.94,594.61,1.106]
[1742125144324,0.33560425,595.94,594.62,2.30180238]
[1742125144525,0.33560425,595.94,594.63,1.0687391]
[1742125145021,0.33560425,595.94,594.64,1.23306328]
[1742125145723,0.33560425,595.94,594.62,1.23306328]
[1742125145923,0.33560425,595.94,594.63,1.45841363]
[1742125146124,0.33560425,595.94,594.64,1.45841363]
[1742125146420,0.33560425,595.94,594.62,1.23306328]
[1742125146619,0.33560425,595.94,594.63,1.06891587]
[1742125146820,0.33560425,595.94,594.64,1.06891587]
[1742125147024,0.33560425,595.94,594.62,1.23306328]
[1742125147225,0.33560425,595.94,594.61,1.106]
[1742125148225,0.33560425,595.94,594.62,1.23343307]
[1742125148923,0.33560425,595.94,594.61,1.106]
[1742125149419,2.48617716,595.85,594.61,1.106]
[1742125154224,2.48617716,595.43,594.61,1.106]
[1742125157329,2.48617716,595.56,594.61,1.106]
[1742125159230,2.82178141,595.94,594.61,1.106]
[1742125159426,0.29263001,595.8,594.61,1.106]
[1742125159629,2.82178141,595.94,594.61,1.106]
[1742125160230,0.33560425,595.94,593.7,0.29262263]
[1742125161938,0.33560425,595.94,593.79,4.07467538]
[1742125162234,0.33560425,595.94,593.8,7.25807505]
[1742125162435,0.33560425,595.94,593.81,3.76555884]
[1742125162636,0.33560425,595.94,593.82,7.25796194]
[1742125162830,0.33560425,595.94,593.83,4.79114081]
[1742125163030,0.33560425,595.94,593.84,3.76555884]
[1742125163235,0.33560425,595.94,593.85,4.07456227]
[1742125163436,0.33560425,595.94,593.86,4.07456227]
[1742125163636,0.33560425,595.94,593.87,4.07456227]
[1742125163930,0.33560425,595.94,593.88,4.07456227]
[1742125164130,0.33560425,595.94,593.89,6.03357745]
[1742125164330,0.33560425,595.94,593.9,3.76555884]
[1742125164534,0.33560425,595.94,593.91,4.07456227]
[1742125164832,0.33560425,595.94,593.92,7.25796194]
[1742125165029,0.33560425,595.94,593.93,4.07456227]
[1742125165230,0.33560425,595.94,593.94,7.25814945]
[1742125165435,0.33560425,595.94,593.96,0.33672301]
[1742125165736,0.33560425,595.94,593.97,4.07474978]
[1742125165931,0.33560425,595.94,593.99,0.336706]
[1742125166135,0.33560425,595.94,594.0,4.07479624]
[1742125166336,0.33560425,595.94,594.01,4.07479624]
[1742125166536,0.33560425,595.94,594.02,4.07532034]
[1742125166737,0.33560425,595.94,594.03,2.37686587]
[1742125167038,0.33560425,595.94,594.04,2.09406118]
[1742125167239,0.33560425,595.94,594.04,3.52007733]
[1742125167630,0.33560425,595.94,594.04,0.33667766]
[1742125168732,0.33560425,595.94,594.05,2.28634061]
[1742125168939,0.33560425,595.94,594.06,1.06148279]
[1742125169140,0.33560425,595.94,594.07,2.67344568]
[1742125169338,0.33560425,595.94,594.08,1.44858786]
[1742125169538,0.33560425,595.94,594.09,1.44858786]
[1742125169740,0.33560425,595.94,594.1,1.44852445]
[1742125169938,0.33560425,595.94,594.11,1.44850894]
[1742125170138,0.29260787,595.93,594.12,0.38710507]
[1742125170333,0.29260787,595.93,594.11,1.22485782]
[1742125170534,0.33562115,595.91,594.12,0.38707182]
[1742125170834,0.33562115,595.91,594.12,1.22485782]
[1742125171034,0.33562115,595.91,594.13,1.44818722]
[1742125171237,0.33562115,595.91,594.14,1.78480821]
[1742125171439,0.33562115,595.91,594.15,1.78488321]
[1742125171633,0.33562115,595.91,594.16,1.78487754]
[1742125171835,0.33562115,595.91,594.17,1.44826788]
[1742125172032,0.33562115,595.91,594.18,4.07445752]
[1742125172238,0.33562115,595.91,594.19,4.4110422]
[1742125172440,0.33562115,595.91,594.2,2.37651716]
[1742125172639,0.33562115,595.91,594.21,4.41122648]
[1742125172841,0.33562115,595.91,594.22,2.37655425]
[1742125173034,0.33562115,595.91,594.23,2.37655425]
[1742125173234,0.33562115,595.91,594.24,1.78483223]
[1742125173439,0.33562115,595.91,594.25,1.75728793]
[1742125173739,0.33562115,595.91,594.26,1.75728793]
[1742125173940,0.33562115,595.91,594.27,0.30902878]
[1742125174338,0.33562115,595.91,594.26,1.22485782]
[1742125177245,0.33562115,595.91,594.24,0.33656435]
[1742125177842,0.33562115,595.91,594.25,0.38693185]
[1742125178038,0.33562115,595.91,594.26,1.78459796]
[1742125178241,0.33562115,595.91,594.27,1.7845923]
[1742125178446,0.33562115,595.91,594.28,1.44804494]
[1742125178640,0.33562115,595.91,594.29,1.78458097]
[1742125178841,0.33562115,595.91,594.3,5.27644179]
[1742125179041,0.33562115,595.91,594.31,1.75700666]
[1742125179242,0.33562115,595.91,594.32,1.75700666]
[1742125179444,0.33562115,595.91,594.33,2.09352004]
[1742125179647,0.33562115,595.91,594.34,1.75700666]
[1742125179849,0.33562115,595.91,594.35,3.76474129]
[1742125180049,0.33562115,595.91,594.36,4.0734647]
[1742125180249,0.33562115,595.91,594.37,2.71240575]
[1742125180448,0.33562115,595.91,594.38,2.09334719]
[1742125180653,0.33562115,595.91,594.39,2.06674047]
[1742125180850,0.33562115,595.91,594.4,1.75674864]
[1742125181053,0.33562115,595.91,594.41,4.93947934]
[1742125181347,0.33562115,595.91,594.42,1.75674864]
[1742125181550,0.33562115,595.91,594.43,1.75674864]
[1742125181751,0.33562115,595.91,594.44,1.75670838]
[1742125182048,0.33562115,595.91,594.45,2.09315383]
[1742125182352,0.33562115,595.91,594.46,2.09314866]
[1742125182552,0.33562115,595.91,594.47,1.78424605]
[1742125182854,0.33562115,595.91,594.48,0.33642847]
[1742125183453,0.33562115,595.91,594.49,2.28513807]
[1742125183748,0.33562115,595.91,594.5,1.78418709]
[1742125183957,0.33562115,595.91,594.51,1.44776994]
[1742125184146,0.33562115,595.91,594.52,2.67194507]
[1742125184349,0.33562115,595.91,594.53,1.44776994]
[1742125184547,0.33562115,595.91,594.54,1.44783601]
[1742125184747,0.33562115,595.91,594.52,1.22417513]
[1742125184953,0.33562115,595.91,594.55,1.22417513]
[1742125185650,0.33562115,595.91,594.5,0.33641715]
[1742125188151,0.33562115,595.91,594.51,1.22465667]
[1742125188961,0.33562115,595.91,594.5,0.33641715]
[1742125196858,0.33562115,595.91,594.51,1.22585346]
[1742125197563,0.33562115,595.91,594.52,1.22585346]
[1742125198163,0.33562115,595.91,594.51,1.22585346]
[1742125199262,0.33562115,595.91,594.52,1.19]
[1742125199765,0.33562115,595.91,594.53,1.22585346]
[1742125201461,0.33562115,595.91,594.54,0.33639452]
[1742125204770,0.33562115,595.91,594.55,1.22611558]
[1742125204971,0.33562115,595.91,594.56,0.3363832]
[1742125205568,0.33562115,595.91,594.57,1.22611558]
[1742125206772,0.33562115,595.91,594.56,0.3363832]
[1742125210870,0.33562115,595.91,594.57,2.6762139]
[1742125211067,0.33562115,595.91,594.57,1.22610551]
[1742125211269,0.33562115,595.91,594.58,1.22610551]
[1742125212470,0.33562115,595.91,594.56,0.3363832]
[1742125213069,0.33562115,595.91,594.57,1.22609229]
[1742125213874,0.33562115,595.91,594.58,1.22609229]
[1742125214473,0.33562115,595.91,594.56,0.3363832]
[1742125215873,0.33562115,595.91,594.57,1.2276716]
[1742125216081,0.33562115,595.91,594.56,0.3363832]
[1742125227786,2.48617716,595.78,594.56,0.3363832]
[1742125227989,0.33570001,595.77,594.56,0.3363832]
[1742125229489,0.33570001,595.77,594.13,0.29254514]
[1742125229689,0.33570001,595.77,594.14,4.13140446]
[1742125229990,0.33570001,595.77,594.15,4.1313988]
[1742125230190,0.33570001,595.77,594.16,4.13139313]
[1742125230385,0.33570001,595.77,594.17,3.79478347]
[1742125230590,0.33570001,595.77,594.18,3.79478347]
[1742125230784,0.33570001,595.77,594.19,7.33978789]
[1742125230990,0.33570001,595.77,594.2,4.13137047]
[1742125231291,0.33570001,595.77,594.21,4.13136481]
[1742125231590,0.33570001,595.77,594.22,3.79521641]
[1742125231793,0.33570001,595.77,594.23,4.13178642]
[1742125231985,0.33570001,595.77,594.24,1.45966802]
[1742125232190,0.33570001,595.77,594.25,1.46027497]
[1742125232490,0.33570001,595.77,594.26,1.07012131]
[1742125232690,0.33570001,595.77,594.27,1.07012131]
[1742125232886,0.33570001,595.77,594.27,1.23400452]
[1742125233687,0.33570001,595.77,594.23,0.33657001]
[1742125234187,0.33570001,595.77,594.24,1.45971691]
[1742125234388,0.33570001,595.77,594.25,1.45971691]
[1742125234591,0.33570001,595.77,594.26,1.45971691]
[1742125234793,0.33570001,595.77,594.27,1.45971691]
[1742125234994,0.33570001,595.77,594.28,1.06971144]
[1742125235295,0.33570001,595.77,594.29,1.06956555]
[1742125235491,0.33570001,595.77,594.27,1.23405115]
[1742125235793,0.33570001,595.77,594.3,1.23405115]
[1742125235996,0.33570001,595.77,594.23,0.33657001]
[1742125236196,0.33570001,595.77,594.24,2.78064312]
[1742125236395,0.33570001,595.77,594.25,2.78064312]
[1742125236594,0.33570001,595.77,594.25,1.71115404]
[1742125236996,0.33570001,595.77,594.24,3.20841583]
[1742125237201,0.33570001,595.77,594.25,1.06949373]
[1742125237391,0.33570001,595.77,594.24,3.20841583]
[1742125237893,0.33570001,595.77,594.23,0.33657001]
[1742125250208,2.48617716,595.76,594.23,0.33657001]
[1742125252507,0.33570001,595.77,594.23,0.33657001]
[1742125259810,2.48617716,595.75,594.23,0.33657001]
[1742125260014,0.33572255,595.73,594.23,0.33657001]
[1742125261915,2.48617716,595.67,594.23,0.33657001]
[1742125262116,0.33576764,595.65,594.23,0.33657001]
[1742125268919,0.33576764,595.65,594.24,3.78094814]
[1742125269223,0.33576764,595.65,594.25,3.49588643]
[1742125269424,0.33576764,595.65,594.1,1.207]
[1742125269425,0.33576764,595.65,594.26,3.49588077]
[1742125269618,0.33576764,595.65,594.27,3.49582273]
[1742125269823,0.33576764,595.65,594.28,1.79078213]
[1742125270017,0.33576764,595.65,594.29,1.79077647]
[1742125270217,0.33576764,595.65,594.3,1.40222311]
[1742125270423,0.33576764,595.65,594.31,1.40221744]
[1742125270620,0.33576764,595.65,594.32,1.06569274]
[1742125270819,0.33576764,595.65,594.33,0.33651338]
[1742125271125,0.33576764,595.65,594.33,1.56602108]
[1742125271625,0.33576764,595.65,594.34,2.63204519]
[1742125271825,0.33576764,595.65,594.35,2.29553747]
[1742125272020,0.33576764,595.65,594.35,1.2295077]
[1742125272926,0.33576764,595.65,594.36,1.06612063]
[1742125273122,0.33576764,595.65,594.37,2.29562833]
[1742125273322,0.33576764,595.65,594.37,1.2295077]
[1742125273522,0.33576764,595.65,594.38,1.06629962]
[1742125273827,0.33576764,595.65,594.39,1.7639234]
[1742125274127,0.33576764,595.65,594.4,2.29575873]
[1742125274327,0.33576764,595.65,594.41,1.06625103]
[1742125274623,0.33576764,595.65,594.42,1.40271346]
[1742125274828,0.33576764,595.65,594.42,0.33646243]
[1742125285730,0.33576764,595.65,594.43,1.23261232]
[1742125286528,0.33576764,595.65,594.42,0.33646243]
[1742125286529,0.33576764,595.65,594.44,1.23261232]
[1742125287131,0.33576764,595.65,594.45,1.23261232]
[1742125288027,0.33576764,595.65,594.46,1.23261232]
[1742125288627,0.33576764,595.65,594.47,1.23261232]
[1742125289332,0.33576764,595.65,594.48,1.23261232]
[1742125289728,0.33576764,595.65,594.42,0.33646243]
[1742125289933,0.33576764,595.65,594.43,1.06811968]
[1742125290133,0.33576764,595.65,594.42,0.33646243]
[1742125290334,0.33576764,595.65,594.44,1.23239561]
[1742125290730,0.33576764,595.65,594.45,1.23239561]
[1742125291136,0.33576764,595.65,594.42,0.33646243]
[1742125291736,0.33576764,595.65,594.43,1.23231081]
[1742125292338,0.33576764,595.65,594.42,0.33646243]
[1742125299547,0.33576764,595.65,594.43,1.06785508]
[1742125299748,0.33576764,595.65,594.43,0.38933071]
[1742125300048,0.33576764,595.65,594.44,1.06783194]
[1742125300348,0.33576764,595.65,594.45,0.3893257]
[1742125300646,0.33576764,595.65,594.42,1.40433449]
[1742125300849,0.33576764,595.65,594.43,1.45723242]
[1742125301148,0.33576764,595.65,594.44,2.68934176]
[1742125301344,0.33576764,595.65,594.45,1.45723242]
[1742125301549,0.33576764,595.65,594.46,2.2999814]
[1742125301750,0.33576764,595.65,594.46,1.23210934]
[1742125302153,0.33576764,595.65,594.42,0.33646243]
[1742125303644,2.48617716,595.63,594.42,0.33646243]
[1742125304454,2.48617716,595.63,594.41,1.083]
[1742125306552,2.48617716,595.54,594.41,1.083]
[1742125307954,0.33584094,595.52,594.41,1.083]
[1742125308756,2.48617716,595.5,594.41,1.083]
[1742125311654,0.33584094,595.52,594.41,1.083]
[1742125331373,2.8220181,595.52,594.41,1.083]
[1742125335476,2.48617716,595.2,594.41,1.083]
[1742125335676,0.33602715,595.19,594.41,1.083]
[1742125342285,2.82220431,595.19,594.41,1.083]
[1742125345487,2.48617716,595.1,594.41,1.083]
[1742125346681,2.48617716,595.1,592.88,1.23415487]
[1742125346884,2.48617716,595.1,592.99,0.33727381]
[1742125347183,2.48617716,595.1,593.69,0.29272478]
[1742125347387,0.33602715,595.19,593.7,7.31785199]
[1742125347583,0.33602715,595.19,593.71,4.11956899]
[1742125347782,0.33602715,595.19,593.72,4.11956332]
[1742125347982,0.33602715,595.19,593.73,4.11955765]
[1742125348187,0.33602715,595.19,593.74,4.11971995]
[1742125348381,0.33602715,595.19,593.75,4.11971428]
[1742125348582,0.33602715,595.19,593.76,4.4289453]
[1742125348782,0.33602715,595.19,593.78,0.33682508]
[1742125348986,0.33602715,595.19,593.79,4.09210887]
[1742125349289,0.33602715,595.19,593.8,4.42892261]
[1742125349483,0.33602715,595.19,593.81,4.42891693]
[1742125349689,0.33602715,595.19,593.82,7.62718858]
[1742125349885,0.33602715,595.19,593.83,7.62718291]
[1742125350086,0.33602715,595.19,593.84,4.42888641]
[1742125350388,0.33602715,595.19,593.85,4.4307849]
[1742125350589,0.33602715,595.19,593.86,3.80836823]
[1742125350785,0.33602715,595.19,593.87,3.49913938]
[1742125350990,0.33602715,595.19,593.88,1.45558811]
[1742125351189,0.33602715,595.19,593.87,0.33677404]
[1742125351384,0.33602715,595.19,593.88,1.06718771]
[1742125351590,0.33602715,595.19,593.89,0.3367627]
[1742125356897,0.33602715,595.19,593.9,1.0684761]
[1742125357094,0.33602715,595.19,593.91,1.40522745]
[1742125357401,0.33602715,595.19,593.92,1.0684761]
[1742125357602,0.33602715,595.19,593.93,1.06885842]
[1742125357802,0.33602715,595.19,593.91,0.33675135]
[1742125357996,0.33602715,595.19,593.92,1.06883839]
[1742125358197,0.33602715,595.19,593.92,1.23334493]
[1742125358895,0.33602715,595.19,593.93,1.23334493]
[1742125359500,0.33602715,595.19,593.92,1.23334493]
[1742125359798,0.33602715,595.19,593.93,1.45869386]
[1742125360003,0.33602715,595.19,593.94,2.63887764]
[1742125360202,0.33602715,595.19,593.95,0.33672868]
[1742125369205,2.48617716,595.18,593.95,0.33672868]
[1742125369410,0.33603844,595.17,593.95,0.33672868]
[1742125383433,0.33603844,595.17,593.96,1.23264222]
[1742125383638,0.33603844,595.17,593.95,0.33672868]
[1742125384429,2.48617716,595.08,593.95,0.33672868]
[1742125386233,2.48617716,594.89,593.95,0.33672868]
[1742125388335,2.48617716,594.87,593.95,0.33672868]
[1742125390729,2.48617716,595.03,593.95,0.33672868]
[1742125391134,2.48617716,595.03,593.96,1.46052374]
[1742125391334,2.48617716,595.03,593.97,1.46052374]
[1742125391534,2.48617716,595.03,593.98,1.07011107]
[1742125391728,2.48617716,595.03,593.99,1.07011107]
[1742125391929,2.48617716,595.03,593.99,1.23504435]
[1742125392131,2.48617716,595.03,594.0,1.07031374]
[1742125392329,2.48617716,595.03,594.01,2.30535809]
[1742125392533,0.33603844,595.17,594.02,1.07057189]
[1742125392734,0.33603844,595.17,594.01,1.23504435]
[1742125393036,0.33603844,595.17,593.95,0.33672868]
[1742125393037,0.33603844,595.17,594.03,1.23504435]
[1742125393539,0.33603844,595.17,593.95,0.33672868]
[1742125394133,2.48617716,594.97,593.95,0.33672868]
[1742125396231,2.48617716,595.07,593.95,0.33672868]
[1742125396836,0.33610056,595.06,593.95,0.33672868]
[1742125401044,2.48617716,595.05,593.95,0.33672868]
[1742125401646,2.48617716,595.05,593.96,1.46286691]
[1742125401845,2.48617716,595.05,593.97,1.46286691]
[1742125402041,2.48617716,595.05,593.98,1.46286691]
[1742125402243,2.48617716,595.05,593.99,1.46286691]
[1742125402544,2.48617716,595.05,594.0,1.07185808]
[1742125402844,2.48617716,595.05,594.01,1.07185808]
[1742125403045,0.33610056,595.06,594.02,1.23672495]
[1742125403444,0.33610056,595.06,594.03,1.0716922]
[1742125403640,0.33610056,595.06,594.02,1.23672495]
[1742125403846,0.33610056,595.06,593.95,0.33672868]
[1742125405653,2.48617716,594.96,593.95,0.33672868]
[1742125407545,0.33610056,595.06,593.95,0.33672868]
[1742125410151,0.33610056,595.06,593.53,0.801]
[1742125410451,0.33610056,595.06,593.54,1.79893429]
[1742125410651,0.33610056,595.06,593.55,1.46197301]
[1742125410848,0.33610056,595.06,593.56,1.79892293]
[1742125411053,0.33610056,595.06,593.57,3.51267739]
[1742125411250,0.33610056,595.06,593.58,3.80103627]
[1742125411450,0.33610056,595.06,593.59,3.51266603]
[1742125411753,0.33610056,595.06,593.6,4.13791725]
[1742125411946,0.33610056,595.06,593.61,3.80099003]
[1742125412158,0.33610056,595.06,593.62,1.79888888]
[1742125412352,0.33610056,595.06,593.63,1.7988832]
[1742125412554,0.33610056,595.06,593.64,1.79887753]
[1742125412852,0.33610056,595.06,593.65,2.30727428]
[1742125413050,0.33610056,595.06,593.66,1.46193575]
[1742125413253,0.33610056,595.06,593.67,1.46193575]
[1742125413554,0.33610056,595.06,593.68,1.0711275]
[1742125413754,0.33610056,595.06,593.69,1.0711275]
[1742125413952,0.33610056,595.06,593.68,1.23614678]
[1742125413953,0.33610056,595.06,593.7,1.0711275]
[1742125414151,2.48617716,594.97,593.68,1.23614678]
[1742125414356,0.33615705,594.96,593.69,1.07097154]
[1742125414551,0.33615705,594.96,593.71,1.23614678]
[1742125415257,0.33615705,594.96,593.72,1.23614678]
[1742125415451,0.33615705,594.96,593.64,0.33690452]
[1742125415655,0.33615705,594.96,593.65,1.46161898]
[1742125415853,0.33615705,594.96,593.66,1.79851215]
[1742125416057,0.33615705,594.96,593.67,1.07091116]
[1742125416258,0.33615705,594.96,593.68,1.07091116]
[1742125416558,0.33615705,594.96,593.69,1.07092753]
[1742125416760,0.33615705,594.96,593.7,0.39072057]
[1742125416960,0.33615705,594.96,593.71,0.39072057]
[1742125417156,0.33615705,594.96,593.72,1.07091732]
[1742125417352,0.33615705,594.96,593.73,1.4616421]
[1742125417553,0.33615705,594.96,593.74,1.07091732]
[1742125417758,0.33615705,594.96,593.72,1.23577889]
[1742125417959,0.33615705,594.96,593.75,1.23577889]
[1742125418159,0.33615705,594.96,593.66,0.33689317]
[1742125435780,0.33615705,594.96,593.66,1.33489317]
[1742125435977,0.33615705,594.96,593.67,1.06631907]
[1742125436180,0.33615705,594.96,593.68,1.79219742]
[1742125436383,0.33615705,594.96,593.69,0.33687614]
[1742125437177,0.33615705,594.96,593.7,1.23040052]
[1742125437480,0.33615705,594.96,593.71,0.33686479]